fUSD/lending_fUSD_20240409
["ID","MTS","AMOUNT","RATE_DAILY","PERIOD"]
[321949184,1712647850580,-526.18788726,0.00020821,2]
[321949186,1712647850590,-1931.47,0.00020821,2]
[321949189,1712647850601,-2091.05,0.00020821,2]
[321949191,1712647850611,-7576.88,0.00020821,2]
[321949192,1712647850621,-2152.08,0.00020821,2]
[321949195,1712647850632,-28570.09,0.00020821,2]
[321949196,1712647850644,-500.0,0.00020821,2]
[321949199,1712647850654,-503.93442815,0.00020821,2]
[321949200,1712647850664,-500.0,0.00020821,2]
[321949202,1712647850673,-3007.44,0.00020821,2]
[321949205,1712647850686,-500.0,0.00020821,2]
[321949206,1712647850697,-500.0,0.00020821,2]
[321949208,1712647850707,-500.0,0.00020821,2]
[321949210,1712647850718,-500.0,0.00020821,2]
[321949212,1712647850728,-500.0,0.00020821,2]
[321949213,1712647850737,-500.0,0.00020821,2]
[321949215,1712647850747,-500.0,0.00020821,2]
[321949217,1712647850758,-910.08,0.00020821,2]
[321949218,1712647850768,-500.0,0.00020821,2]
[321949220,1712647850777,-500.0,0.00020821,2]
[321949222,1712647850787,-500.0,0.00020821,2]
[321949223,1712647850796,-500.0,0.00020821,2]
[321949225,1712647850806,-500.0,0.00020821,2]
[321949227,1712647850815,-3813.93,0.00020821,2]
[321949228,1712647850824,-500.0,0.00020821,2]
[321949230,1712647850835,-3463.87,0.00020821,2]
[321949232,1712647850845,-500.0,0.00020821,2]
[321949234,1712647850855,-4860.06,0.00020821,2]
[321949235,1712647850865,-500.0,0.00020821,2]
[321949237,1712647850874,-3157.47,0.00020821,2]
[321949239,1712647850884,-500.0,0.00020821,2]
[321949240,1712647850894,-2050.12,0.00020821,2]
[321949242,1712647850904,-501.16835015,0.00020821,2]
[321949244,1712647850914,-505.17050409,0.00020821,2]
[321949246,1712647850924,-500.0,0.00020821,2]
[321949247,1712647850933,-500.0,0.00020821,2]
[321949249,1712647850943,-526.26422935,0.00020821,2]
[321949251,1712647850954,-510.54224181,0.00020821,2]
[321949252,1712647850963,-500.0,0.00020821,2]
[321949254,1712647850972,-500.0,0.00020821,2]
[321949256,1712647850982,-4387.43,0.00020821,2]
[321949257,1712647850991,-7079.9,0.00020821,2]
[321949259,1712647851002,-500.0,0.00020821,2]
[321949261,1712647851012,-500.0,0.00020821,2]
[321949263,1712647851022,-500.0,0.00020821,2]
[321949264,1712647851032,-500.0,0.00020821,2]
[321949266,1712647851042,-500.0,0.00020821,2]
[321949267,1712647851052,-3924.94,0.00020821,2]
[321949269,1712647851062,-500.0,0.00020821,2]
[321949271,1712647851073,-5262.1,0.00020821,2]
[321949273,1712647851083,-8189.72,0.00020821,2]
[321949275,1712647851093,-504.0147868,0.00020821,2]
[321949276,1712647851104,-500.0,0.00020821,2]
[321949278,1712647851114,-500.0,0.00020821,2]
[321949280,1712647851124,-2639.33,0.00020821,2]
[321949282,1712647851134,-1454.33,0.00020821,2]
[321949284,1712647851145,-505.38126221,0.00020821,2]
[321949285,1712647851155,-500.0,0.00020821,2]
[321949287,1712647851165,-234.15322979,0.00020821,2]
[321949289,1712647851177,-616.46,0.00020821,2]
[321949291,1712647851188,-1908.74,0.00020821,2]
[321949293,1712647851197,-534.89804114,0.00020821,2]
[321949294,1712647851207,-1282.28,0.00020821,2]
[321949296,1712647851217,-500.0,0.00020821,2]
[321949298,1712647851228,-500.0,0.00020821,2]
[321949299,1712647851237,-548.133969,0.00020821,2]
[321949301,1712647851246,-500.0,0.00020821,2]
[321949303,1712647851255,-500.0,0.00020821,2]
[321949305,1712647851264,-931.11,0.00020821,2]
[321949306,1712647851274,-3827.25,0.00020821,2]
[321949308,1712647851283,-500.0,0.00020821,2]
[321949310,1712647851293,-500.0,0.00020821,2]
[321949312,1712647851303,-14038.85,0.00020821,2]
[321949314,1712647851313,-586.2080282,0.00020821,2]
[321949315,1712647851322,-4430.95,0.00020821,2]
[321949317,1712647851332,-500.0,0.00020821,2]
[321949319,1712647851341,-510.36695014,0.00020821,2]
[321949321,1712647851351,-909.9,0.00020821,2]
[321949322,1712647851360,-2170.12,0.00020821,2]
[321949324,1712647851371,-551.45,0.00020821,2]
[321949326,1712647851381,-26397.72,0.00020821,2]
[321949328,1712647851391,-590.89449618,0.00020821,2]
[321949330,1712647851402,-500.0,0.00020821,2]
[321949332,1712647851411,-4091.07,0.00020821,2]
[321949333,1712647851420,-500.0,0.00020821,2]
[321949335,1712647851429,-500.0,0.00020821,2]
[321949337,1712647851440,-3039.69,0.00020821,2]
[321949339,1712647851449,-2152.71,0.00020821,2]
[321949341,1712647851459,-673.41,0.00020821,2]
[321949342,1712647851468,-500.0,0.00020821,2]
[321949344,1712647851478,-500.0,0.00020821,2]
[321949346,1712647851488,-4697.85,0.00020821,2]
[321949348,1712647851498,-500.0,0.00020821,2]
[321949350,1712647851507,-1425.54,0.00020821,2]
[321949352,1712647851516,-500.0,0.00020821,2]
[321949354,1712647851526,-522.55967814,0.00020821,2]
[321949356,1712647851536,-3637.0,0.00020821,2]
[321949358,1712647851545,-502.81202394,0.00020821,2]
[321949360,1712647851555,-4194.71,0.00020821,2]
[321949362,1712647851564,-500.0,0.00020821,2]
[321949363,1712647851574,-500.0,0.00020821,2]
[321949365,1712647851584,-560.45,0.00020821,2]
[321949368,1712647851597,-2303.67,0.00020821,2]
[321949370,1712647851607,-579.28,0.00020821,2]
[321949372,1712647851617,-4566.56,0.00020821,2]
[321949373,1712647851626,-500.0,0.00020821,2]
[321949376,1712647851636,-500.0,0.00020821,2]
[321949377,1712647851647,-1012.87,0.00020821,2]
[321949379,1712647851657,-500.0,0.00020821,2]
[321949381,1712647851666,-2605.85,0.00020821,2]
[321949383,1712647851675,-500.0,0.00020821,2]
[321949385,1712647851686,-1743.94,0.00020821,2]
[321949387,1712647851696,-4131.92,0.00020821,2]
[321949389,1712647851705,-5047.08,0.00020821,2]
[321949391,1712647851716,-5047.08,0.00020821,2]
[321949394,1712647851726,-5550.44,0.00020821,2]
[321949396,1712647851737,-5047.08,0.00020821,2]
[321949397,1712647851747,-2813.07,0.00020821,2]
[321949399,1712647851758,-5047.08,0.00020821,2]
[321949400,1712647851767,-5047.08,0.00020821,2]
[321949401,1712647851777,-5047.08,0.00020821,2]
[321949402,1712647851787,-5047.08,0.00020821,2]
[321949403,1712647851798,-5047.08,0.00020821,2]
[321949404,1712647851807,-732.63,0.00020821,2]
[321949405,1712647851817,-11536.91,0.00020821,2]
[321949406,1712647851826,-500.0,0.00020821,2]
[321949407,1712647851835,-500.0,0.00020821,2]
[321949408,1712647851845,-500.0,0.00020821,2]
[321949409,1712647851854,-446.96867955,0.00020821,2]
[321949410,1712647851864,-220.99954514,0.00020821,2]
[321949411,1712647851874,-2286.64,0.00020821,2]
[321949412,1712647851883,-511.66545764,0.00020821,2]
[321949413,1712647851892,-500.0,0.00020821,2]
[321949414,1712647851901,-500.0,0.00020821,2]
[321949415,1712647851910,-465.81733077,0.00020821,2]
[321949416,1712647851919,-500.0,0.00020821,2]
[321949417,1712647851928,-500.0,0.00020821,2]
[321949418,1712647851940,-781.37,0.00020821,2]
[321949420,1712647851951,-193.55671807,0.00020821,2]
[321949422,1712647851961,-4967.09,0.00020821,2]
[321949423,1712647851972,-500.0,0.00020821,2]
[321949425,1712647851982,-11528.61,0.00020821,2]
[321949427,1712647851992,-500.0,0.00020821,2]
[321949429,1712647852002,-500.0,0.00020821,2]
[321949431,1712647852011,-500.0,0.00020821,2]
[321949433,1712647852021,-500.0,0.00020821,2]
[321949435,1712647852031,-4414.03,0.00020821,2]
[321949437,1712647852040,-322.19802323,0.00020821,2]
[321949439,1712647852050,-2000.24,0.00020821,2]
[321949441,1712647852062,-22220.97,0.00020821,2]
[321949443,1712647852072,-502.77952356,0.00020821,2]
[321949445,1712647852083,-7004.13,0.00020821,2]
[321949448,1712647852093,-1553.14,0.00020821,2]
[321949449,1712647852103,-500.0,0.00020821,2]
[321949452,1712647852114,-500.63013609,0.00020821,2]
[321949454,1712647852123,-507.42727293,0.00020821,2]
[321949456,1712647852132,-512.94562822,0.00020821,2]
[321949457,1712647852143,-1126.94,0.00020821,2]
[321949460,1712647852154,-500.0,0.00020821,2]
[321949462,1712647852163,-504.56395249,0.00020821,2]
[321949463,1712647852173,-500.0,0.00020821,2]
[321949466,1712647852183,-500.0,0.00020821,2]
[321949468,1712647852193,-1965.34,0.00020821,2]
[321949470,1712647852203,-1425.51,0.00020821,2]
[321949471,1712647852214,-10806.48,0.00020821,2]
[321949474,1712647852226,-935.31,0.00020821,2]
[321949476,1712647852236,-500.0,0.00020821,2]
[321949477,1712647852246,-501.38565925,0.00020821,2]
[321949479,1712647852255,-4518.03,0.00020821,2]
[321949481,1712647852264,-500.0,0.00020821,2]
[321949484,1712647852274,-1610.72,0.00020821,2]
[321949485,1712647852284,-11128.65,0.00020821,2]
[321949487,1712647852294,-500.0,0.00020821,2]
[321949489,1712647852304,-506.81824795,0.00020821,2]
[321949492,1712647852314,-500.0,0.00020821,2]
[321949493,1712647852325,-500.0,0.00020821,2]
[321949495,1712647852334,-583.81,0.00020821,2]
[321949498,1712647852345,-500.0,0.00020821,2]
[321949499,1712647852355,-500.0,0.00020821,2]
[321949501,1712647852365,-8693.02,0.00020821,2]
[321949503,1712647852375,-7861.45,0.00020821,2]
[321949506,1712647852386,-500.0,0.00020821,2]
[321949507,1712647852396,-6545.05,0.00020821,2]
[321949509,1712647852406,-572.09,0.00020821,2]
[321949511,1712647852417,-503.09629627,0.00020821,2]
[321949513,1712647852427,-8301.1,0.00020821,2]
[321949515,1712647852439,-6121.04,0.00020821,2]
[321949517,1712647852449,-5308.61,0.00020821,2]
[321949519,1712647852459,-3100.82,0.00020821,2]
[321949521,1712647852469,-506.52325604,0.00020821,2]
[321949523,1712647852479,-500.0,0.00020821,2]
[321949526,1712647852490,-66192.35,0.00020821,2]
[321949527,1712647852499,-525.21363032,0.00020821,2]
[321949529,1712647852509,-1400.7,0.00020821,2]
[321949531,1712647852519,-500.0,0.00020821,2]
[321949534,1712647852530,-645.1,0.00020821,2]
[321949536,1712647852544,-256.08986522,0.00020821,2]
[321949538,1712647852553,-500.0,0.00020821,2]
[321949540,1712647852563,-935.97,0.00020821,2]
[321949542,1712647852574,-999.6,0.00020821,2]
[321949544,1712647852584,-1936.5,0.00020821,2]
[321949546,1712647852594,-500.0,0.00020821,2]
[321949548,1712647852604,-53006.52,0.00020821,2]
[321949550,1712647852613,-500.0,0.00020821,2]
[321949552,1712647852623,-500.0,0.00020821,2]
[321949554,1712647852633,-500.0,0.00020821,2]
[321949556,1712647852644,-502.67269191,0.00020821,2]
[321949558,1712647852655,-10621.6,0.00020821,2]
[321949560,1712647852665,-4786.17,0.00020821,2]
[321949562,1712647852675,-658.13,0.00020821,2]
[321949564,1712647852687,-2389.24,0.00020821,2]
[321949566,1712647852697,-500.0,0.00020821,2]
[321949568,1712647852707,-500.0,0.00020821,2]
[321949570,1712647852716,-500.70688306,0.00020821,2]
[321949572,1712647852726,-500.0,0.00020821,2]
[321949574,1712647852736,-500.0,0.00020821,2]
[321949576,1712647852746,-500.0,0.00020821,2]
[321949578,1712647852757,-500.0,0.00020821,2]
[321949580,1712647852768,-628.15,0.00020821,2]
[321949582,1712647852777,-500.0,0.00020821,2]
[321949584,1712647852786,-504.10739986,0.00020821,2]
[321949586,1712647852796,-6114.99,0.00020821,2]
[321949588,1712647852805,-500.0,0.00020821,2]
[321949590,1712647852814,-8957.23,0.00020821,2]
[321949592,1712647852823,-506.27246719,0.00020821,2]
[321949594,1712647852833,-3697.16,0.00020821,2]
[321949596,1712647852843,-500.0,0.00020821,2]
[321949598,1712647852855,-2511.91,0.00020821,2]
[321949600,1712647852865,-500.0,0.00020821,2]
[321949602,1712647852874,-2762.82,0.00020821,2]
[321949604,1712647852884,-500.0,0.00020821,2]
[321949606,1712647852893,-504.51985629,0.00020821,2]
[321949608,1712647852902,-500.0,0.00020821,2]
[321949610,1712647852911,-500.0,0.00020821,2]
[321949612,1712647852921,-895.46,0.00020821,2]
[321949614,1712647852930,-500.0,0.00020821,2]
[321949616,1712647852940,-757.32,0.00020821,2]
[321949618,1712647852951,-2276.86,0.00020821,2]
[321949620,1712647852962,-1216.36,0.00020821,2]
[321949622,1712647852972,-707.98,0.00020821,2]
[321949625,1712647852982,-500.0,0.00020821,2]
[321949627,1712647852994,-12872.15,0.00020821,2]
[321949629,1712647853006,-864.59,0.00020821,2]
[321949630,1712647853015,-500.0,0.00020821,2]
[321949633,1712647853025,-500.0,0.00020821,2]
[321949635,1712647853035,-500.0,0.00020821,2]
[321949637,1712647853045,-310.75509441,0.00020821,2]
[321949639,1712647853055,-500.0,0.00020821,2]
[321949641,1712647853066,-500.0,0.00020821,2]
[321949642,1712647853077,-500.0,0.00020821,2]
[321949644,1712647853087,-2048.88,0.00020821,2]
[321949646,1712647853096,-1083.6,0.00020821,2]
[321949649,1712647853106,-4094.59,0.00020821,2]
[321949651,1712647853116,-504.60216393,0.00020821,2]
[321949653,1712647853126,-3942.09,0.00020821,2]
[321949655,1712647853136,-504.60601784,0.00020821,2]
[321949657,1712647853149,-6139.71,0.00020821,2]
[321949659,1712647853158,-8222.84,0.00020821,2]
[321949661,1712647853167,-500.0,0.00020821,2]
[321949663,1712647853177,-2771.13,0.00020821,2]
[321949665,1712647853187,-4189.8,0.00020821,2]
[321949667,1712647853197,-600.0,0.00020821,2]
[321949669,1712647853206,-796.37,0.00020821,2]
[321949671,1712647853216,-500.0,0.00020821,2]
[321949673,1712647853225,-500.0,0.00020821,2]
[321949675,1712647853235,-3204.47,0.00020821,2]
[321949676,1712647853244,-595.59,0.00020821,2]
[321949679,1712647853253,-500.0,0.00020821,2]
[321949680,1712647853263,-500.0,0.00020821,2]
[321949682,1712647853272,-2177.14,0.00020821,2]
[321949684,1712647853281,-500.0,0.00020821,2]
[321949686,1712647853290,-500.0,0.00020821,2]
[321949688,1712647853300,-500.0,0.00020821,2]
[321949691,1712647853310,-6396.29,0.00020821,2]
[321949693,1712647853320,-1137.77,0.00020821,2]
[321949695,1712647853329,-500.0,0.00020821,2]
[321949697,1712647853338,-4363.02,0.00020821,2]
[321949699,1712647853348,-2111.11,0.00020821,2]
[321949701,1712647853358,-5570.36,0.00020821,2]
[321949703,1712647853367,-500.0,0.00020821,2]
[321949705,1712647853376,-500.0,0.00020821,2]
[321949707,1712647853385,-505.05484735,0.00020821,2]
[321949709,1712647853394,-500.0,0.00020821,2]
[321949711,1712647853403,-500.0,0.00020821,2]
[321949713,1712647853412,-500.0,0.00020821,2]
[321949715,1712647853421,-531.38,0.00020821,2]
[321949717,1712647853430,-500.0,0.00020821,2]
[321949719,1712647853440,-500.0,0.00020821,2]
[321949721,1712647853449,-504.53487218,0.00020821,2]
[321949723,1712647853458,-500.0,0.00020821,2]
[321949725,1712647853467,-3881.86,0.00020821,2]
[321949727,1712647853477,-500.0,0.00020821,2]
[321949729,1712647853486,-3940.44,0.00020821,2]
[321949731,1712647853495,-4085.96,0.00020821,2]
[321949733,1712647853504,-861.23,0.00020821,2]
[321949734,1712647853516,-1325.23,0.00020821,2]
[321949736,1712647853525,-500.0,0.00020821,2]
[321949738,1712647853534,-7858.88,0.00020821,2]
[321949740,1712647853543,-500.0,0.00020821,2]
[321949743,1712647853552,-2697.08,0.00020821,2]
[321949745,1712647853562,-1715.93,0.00020821,2]
[321949747,1712647853571,-3917.42,0.00020821,2]
[321949749,1712647853580,-500.0,0.00020821,2]
[321949750,1712647853589,-609.75,0.00020821,2]
[321949752,1712647853598,-764.37,0.00020821,2]
[321949754,1712647853607,-674.06,0.00020821,2]
[321949756,1712647853616,-500.0,0.00020821,2]
[321949758,1712647853625,-500.0,0.00020821,2]
[321949760,1712647853634,-500.0,0.00020821,2]
[321949762,1712647853642,-683.69,0.00020821,2]
[321949764,1712647853652,-500.0,0.00020821,2]
[321949766,1712647853661,-500.0,0.00020821,2]
[321949768,1712647853670,-500.0,0.00020821,2]
[321949770,1712647853679,-2944.22,0.00020821,2]
[321949772,1712647853689,-504.81446161,0.00020821,2]
[321949774,1712647853699,-4540.97,0.00020821,2]
[321949776,1712647853708,-38201.1,0.00020821,2]
[321949778,1712647853717,-7858.86,0.00020821,2]
[321949780,1712647853726,-500.0,0.00020821,2]
[321949782,1712647853736,-500.0,0.00020821,2]
[321949784,1712647853746,-500.0,0.00020821,2]
[321949786,1712647853755,-5283.35,0.00020821,2]
[321949788,1712647853764,-1488.32,0.00020821,2]
[321949790,1712647853773,-500.0,0.00020821,2]
[321949792,1712647853781,-2192.49,0.00020821,2]
[321949794,1712647853790,-500.0,0.00020821,2]
[321949796,1712647853799,-500.0,0.00020821,2]
[321949798,1712647853809,-707.15,0.00020821,2]
[321949800,1712647853818,-500.0,0.00020821,2]
[321949802,1712647853827,-500.0,0.00020821,2]
[321949804,1712647853836,-500.0,0.00020821,2]
[321949806,1712647853845,-552.07,0.00020821,2]
[321949808,1712647853854,-1898.57,0.00020821,2]
[321949810,1712647853863,-3414.79,0.00020821,2]
[321949812,1712647853872,-596.18261937,0.00020821,2]
[321949814,1712647853882,-2014.03,0.00020821,2]
[321949816,1712647853891,-10873.91,0.00020821,2]
[321949818,1712647853900,-500.0,0.00020821,2]
[321949820,1712647853909,-4085.59,0.00020821,2]
[321949822,1712647853918,-500.0,0.00020821,2]
[321949824,1712647853927,-500.0,0.00020821,2]
[321949826,1712647853937,-500.0,0.00020821,2]
[321949828,1712647853946,-500.0,0.00020821,2]
[321949830,1712647853955,-7269.4,0.00020821,2]
[321949832,1712647853964,-176.14436195,0.00020821,2]
[321949834,1712647853974,-946.85,0.00020821,2]
[321949836,1712647853983,-505.48241715,0.00020821,2]
[321949838,1712647853992,-1202.04,0.00020821,2]
[321949840,1712647854002,-3714.209,0.00020821,2]
[321949842,1712647854010,-2040.10101625,0.00020827,2]
[321949844,1712647854020,-168.65528334,0.00020884,2]
[321949846,1712647854029,-940.95,0.00020895,2]
[321949848,1712647854038,-4068.16896171,0.000209,2]
[321949850,1712647854047,-8605.38353,0.000209,2]
[321949852,1712647854056,-2221.0,0.000209,2]
[321949854,1712647854066,-310.34601136,0.000209,2]
[321949856,1712647854074,-445.16982766,0.000209,2]
[321949858,1712647854084,-649.99205628,0.000209,3]
[321949860,1712647854093,-800.35613491,0.000209,2]
[321949862,1712647854102,-890.15746402,0.000209,2]
[321949864,1712647854112,-2609.99017157,0.00020931,2]
[321949866,1712647854121,-7098.75396337,0.00020931,2]
[321949868,1712647854131,-2040.10101625,0.00020947,2]
[321949870,1712647854144,-513.0,0.00020962,2]
[321949872,1712647854154,-4906.5396855,0.00020965,2]
[321949874,1712647854164,-180.80177664,0.0002099,2]
[321949876,1712647854173,-500.0,0.00020998,2]
[321949878,1712647854182,-5047.08,0.00020998,2]
[321949880,1712647854193,-1271.86296699,0.00020999,2]
[321949882,1712647854202,-500.0,0.00020999,2]
[321949884,1712647854211,-500.0,0.00020999,2]
[321949886,1712647854222,-500.0,0.00020999,2]
[321949888,1712647854230,-500.0,0.00020999,2]
[321949890,1712647854239,-500.0,0.00020999,2]
[321949892,1712647854249,-500.0,0.00020999,2]
[321949894,1712647854258,-500.0,0.00020999,2]
[321949896,1712647854267,-535.0,0.00020999,2]
[321949898,1712647854276,-5047.08,0.00020999,2]
[321949900,1712647854285,-5047.08,0.00020999,2]
[321949902,1712647854294,-5047.08,0.00020999,2]
[321949904,1712647854303,-5047.08,0.00020999,2]
[321949906,1712647854312,-5047.08,0.00020999,2]
[321949917,1712647854448,-5047.08,0.00020999,2]
[321949919,1712647854458,-5047.08,0.00020999,2]
[321949921,1712647854467,-5047.08,0.00020999,2]
[321949923,1712647854476,-5047.08,0.00020999,2]
[321949925,1712647854485,-5047.08,0.00020999,2]
[321949927,1712647854495,-5047.08,0.00020999,2]
[321949929,1712647854505,-5047.08,0.00020999,2]
[321949931,1712647854514,-5047.08,0.00020999,2]
[321949933,1712647854523,-5047.08,0.00020999,2]
[321949935,1712647854532,-5047.31068332,0.00020999,2]
[321949937,1712647854542,-3853806.88042312,0.00021,2]
[321949939,1712647854551,-152553.57604117,0.00021,2]
[321949941,1712647854560,-3500.0,0.00021,2]
[321949943,1712647854569,-550.0,0.00021,3]
[321949945,1712647854581,-919.46,0.00021,2]
[321949947,1712647854590,-1152.532,0.00021039,2]
[321949949,1712647854599,-2319.668,0.00021039,2]
[321949951,1712647854608,-590.107,0.00021039,2]
[321949953,1712647854617,-151.565,0.00021039,2]
[321949955,1712647854627,-214.0,0.00021039,2]
[321949957,1712647854636,-354.0,0.00021039,2]
[321949959,1712647854646,-442.0,0.00021039,2]
[321949961,1712647854655,-975.074,0.00021039,2]
[321949963,1712647854664,-4795.0,0.00021039,2]
[321949965,1712647854673,-5709.0,0.00021039,2]
[321949967,1712647854682,-464.055,0.00021039,2]
[321949969,1712647854693,-1415.045,0.00021039,2]
[321949971,1712647854702,-26491.555,0.00021039,2]
[321949973,1712647854711,-2466.004,0.00021039,2]
[321949975,1712647854720,-1958.914,0.00021039,2]
[321949977,1712647854730,-649.99205628,0.00021061,4]
[321949979,1712647854739,-2040.10101625,0.00021066,2]
[321949981,1712647854748,-978.15953745,0.00021079,2]
[321949983,1712647854757,-15373.1155198,0.00021086,2]
[321949985,1712647854766,-222183.9719438,0.00021086,2]
[321949987,1712647854774,-14521.4537262,0.00021086,2]
[321949989,1712647854784,-9669.4296859,0.00021086,2]
[321949991,1712647854793,-740.33431806,0.00021086,2]
[321949993,1712647854802,-157.52193032,0.00021094,3]
[321949995,1712647854811,-206.59266165,0.00021094,2]
[321949997,1712647854821,-5827.91546642,0.00021094,2]
[321949999,1712647854830,-500.0,0.00021095,2]
[321950001,1712647854840,-2876.9080857,0.00021095,2]
[321950003,1712647854849,-500.0,0.00021095,2]
[321950005,1712647854858,-495.25806682,0.00021095,2]
[321950007,1712647854867,-500.0,0.00021095,2]
[321950009,1712647854876,-182.41896612,0.00021095,2]
[321950012,1712647854885,-535.26627243,0.00021095,2]
[321950014,1712647854895,-512.37270006,0.00021095,2]
[321950016,1712647854904,-500.0,0.00021095,2]
[321950018,1712647854913,-500.0,0.00021095,2]
[321950020,1712647854922,-504.19256596,0.00021095,2]
[321950022,1712647854931,-500.0,0.00021095,2]
[321950024,1712647854942,-391.99960938,0.00021095,2]
[321950026,1712647854951,-500.0,0.00021095,2]
[321950028,1712647854960,-500.0,0.00021095,2]
[321950030,1712647854969,-500.0,0.00021095,2]
[321950032,1712647854978,-500.0,0.00021095,2]
[321950033,1712647854987,-500.0,0.00021095,2]
[321950035,1712647854996,-500.0,0.00021095,2]
[321950037,1712647855005,-500.0,0.00021095,2]
[321950039,1712647855014,-185.03760943,0.00021095,2]
[321950041,1712647855024,-500.0,0.00021095,2]
[321950043,1712647855033,-500.0,0.00021095,2]
[321950045,1712647855043,-501.31591074,0.00021095,2]
[321950048,1712647855052,-500.0,0.00021095,2]
[321950050,1712647855062,-500.0,0.00021095,2]
[321950051,1712647855071,-506.24699223,0.00021095,2]
[321950053,1712647855080,-500.0,0.00021095,2]
[321950054,1712647855090,-500.0,0.00021095,2]
[321950055,1712647855099,-500.0,0.00021095,2]
[321950056,1712647855108,-500.0,0.00021095,2]
[321950057,1712647855117,-500.0,0.00021095,2]
[321950058,1712647855126,-500.0,0.00021095,2]
[321950059,1712647855138,-500.0,0.00021095,2]
[321950060,1712647855150,-489.5883856,0.00021095,2]
[321950061,1712647855159,-500.0,0.00021095,2]
[321950062,1712647855169,-500.0,0.00021095,2]
[321950063,1712647855178,-500.0,0.00021095,2]
[321950064,1712647855187,-500.0,0.00021095,2]
[321950066,1712647855197,-628.34141402,0.00021095,2]
[321950068,1712647855206,-500.0,0.00021095,2]
[321950070,1712647855215,-501.50064527,0.00021095,2]
[321950072,1712647855225,-501.9128072,0.00021095,2]
[321950074,1712647855234,-500.0,0.00021095,2]
[321950076,1712647855244,-500.0,0.00021095,2]
[321950078,1712647855253,-504.99543009,0.00021095,2]
[321950080,1712647855263,-500.0,0.00021095,2]
[321950082,1712647855272,-525.50494638,0.00021095,2]
[321950084,1712647855282,-500.0,0.00021095,2]
[321950086,1712647855291,-500.0,0.00021095,2]
[321950088,1712647855300,-507.27992265,0.00021095,2]
[321950090,1712647855310,-502.75450988,0.00021095,2]
[321950092,1712647855319,-500.0,0.00021095,2]
[321950094,1712647855329,-500.0,0.00021095,2]
[321950096,1712647855339,-500.0,0.00021095,2]
[321950098,1712647855348,-745.92,0.00021095,2]
[321950100,1712647855358,-515.99871665,0.00021095,2]
[321950102,1712647855367,-500.0,0.00021095,2]
[321950104,1712647855376,-500.0,0.00021095,2]
[321950106,1712647855386,-596.85,0.00021095,2]
[321950108,1712647855395,-500.0,0.00021095,2]
[321950110,1712647855405,-501.62067993,0.00021095,2]
[321950112,1712647855415,-796.63,0.00021095,2]
[321950114,1712647855424,-860.54,0.00021095,2]
[321950116,1712647855434,-547.00948235,0.00021095,2]
[321950118,1712647855446,-500.0,0.00021095,2]
[321950120,1712647855456,-500.0,0.00021095,2]
[321950122,1712647855465,-512.26080629,0.00021095,2]
[321950124,1712647855475,-500.0,0.00021095,2]
[321950126,1712647855484,-500.0,0.00021095,2]
[321950128,1712647855494,-541.11,0.00021095,2]
[321950131,1712647855503,-500.55749713,0.00021095,2]
[321950133,1712647855513,-500.0,0.00021095,2]
[321950135,1712647855522,-1213.87,0.00021095,2]
[321950136,1712647855532,-538.92112481,0.00021095,2]
[321950139,1712647855543,-500.0,0.00021095,2]
[321950141,1712647855556,-500.0,0.00021095,2]